[Event "Vetern-SM 50+ 2025"]
[Site "Uppsala, Sweden"]
[Date "2025.07.06"]
[Round "9.5"]
[White "Gromark, Jonas"]
[Black "Ljung, Rickard"]
[Result "1/2-1/2"]
[TimeControl "90 min for 40 move + 30 min with an increment of 30 sec starting move 1"]
[WhiteFideId "137122733"]
[BlackFideId "1740156"]
[WhiteElo "1822"]
[BlackElo "1972"]

1. c4 {[%clk 01:30:42]} {[%emt 00:00:17]} Nf6 {[%clk 01:30:42]} {[%emt
00:00:19]} 2. Nc3 {[%clk 01:30:59]} {[%emt 00:00:12]} g6 {[%clk 01:31:02]}
{[%emt 00:00:10]} 3. e4 {[%clk 01:31:16]} {[%emt 00:00:13]} d6 {[%clk
01:31:22]} {[%emt 00:00:10]} 4. g3 {[%clk 01:31:36]} {[%emt 00:00:10]} Bg7
{[%clk 01:31:39]} {[%emt 00:00:13]} 5. Bg2 {[%clk 01:32:01]} {[%emt 00:00:05]}
e5 {[%clk 01:31:01]} {[%emt 00:01:09]} 6. Nge2 {[%clk 01:32:20]} {[%emt
00:00:10]} O-O {[%clk 01:31:12]} {[%emt 00:00:19]} 7. O-O {[%clk 01:32:36]}
{[%emt 00:00:14]} Nc6 {[%clk 01:30:57]} {[%emt 00:00:45]} 8. d3 {[%clk
01:32:46]} {[%emt 00:00:20]} Be6 {[%clk 01:30:25]} {[%emt 00:01:02]} 9. h3
{[%clk 01:31:20]} {[%emt 00:01:55]} Qd7 {[%clk 01:29:26]} {[%emt 00:01:30]} 10.
Kh2 {[%clk 01:31:47]} {[%emt 00:00:02]} a6 {[%clk 01:25:44]} {[%emt 00:04:13]}
11. a4 {[%clk 01:31:13]} {[%emt 00:01:04]} Nb4 {[%clk 01:23:44]} {[%emt
00:02:30]} 12. Nd5 {[%clk 01:27:33]} {[%emt 00:04:10]} Bxd5 {[%clk 01:17:02]}
{[%emt 00:07:13]} 13. cxd5 {[%clk 01:27:22]} {[%emt 00:00:40]} c6 {[%clk
01:16:48]} {[%emt 00:00:44]} 14. dxc6 {[%clk 01:22:40]} {[%emt 00:05:12]} bxc6
{[%clk 01:14:49]} {[%emt 00:02:30]} 15. Be3 {[%clk 01:20:07]} {[%emt 00:03:02]}
Rab8 {[%clk 01:14:20]} {[%emt 00:00:58]} 16. d4 {[%clk 01:16:25]} {[%emt
00:04:12]} Rfd8 {[%clk 01:12:49]} {[%emt 00:02:01]} 17. dxe5 {[%clk 01:09:29]}
{[%emt 00:07:27]} dxe5 {[%clk 01:13:01]} {[%emt 00:00:18]} 18. Qxd7 {[%clk
01:00:50]} {[%emt 00:09:09]} Rxd7 {[%clk 01:12:41]} {[%emt 00:00:50]} 19. Rfd1
{[%clk 01:00:37]} {[%emt 00:00:43]} Bf8 {[%clk 01:12:18]} {[%emt 00:00:54]} 20.
Bg5 {[%clk 00:55:52]} {[%emt 00:05:13]} Rxd1 {[%clk 01:07:50]} {[%emt
00:04:59]} 21. Rxd1 {[%clk 00:56:19]} {[%emt 00:00:03]} Kg7 {[%clk 01:08:01]}
{[%emt 00:00:19]} 22. Be3 {[%clk 00:53:35]} {[%emt 00:03:13]} Nc2 {[%clk
01:05:14]} {[%emt 00:03:17]} 23. Bc1 {[%clk 00:52:05]} {[%emt 00:02:00]} Rb4
{[%clk 00:59:27]} {[%emt 00:06:18]} 24. Nc3 {[%clk 00:50:36]} {[%emt 00:01:58]}
Bc5 {[%clk 00:58:11]} {[%emt 00:01:46]} 25. f4 {[%clk 00:44:54]} {[%emt
00:06:13]} exf4 {[%clk 00:53:44]} {[%emt 00:04:57]} 26. gxf4 {[%clk 00:44:09]}
{[%emt 00:01:15]} Ne3 {[%clk 00:52:59]} {[%emt 00:01:16]} 27. Re1 {[%clk
00:38:58]} {[%emt 00:05:40]} Nxg2 {[%clk 00:46:21]} {[%emt 00:07:08]} 28. Kxg2
{[%clk 00:39:26]} {[%emt 00:00:02]} Bd4 {[%clk 00:44:29]} {[%emt 00:02:22]} 29.
e5 {[%clk 00:37:55]} {[%emt 00:02:00]} Nd5 {[%clk 00:39:49]} {[%emt 00:05:11]}
30. Nxd5 {[%clk 00:35:09]} {[%emt 00:03:16]} cxd5 {[%clk 00:40:10]} {[%emt
00:00:09]} 31. e6 {[%clk 00:33:00]} {[%emt 00:02:39]} fxe6 {[%clk 00:39:20]}
{[%emt 00:01:20]} 32. Rxe6 {[%clk 00:33:27]} {[%emt 00:00:03]} Rxa4 {[%clk
00:35:29]} {[%emt 00:04:21]} 33. Rd6 {[%clk 00:32:25]} {[%emt 00:01:32]} Rc4
{[%clk 00:31:25]} {[%emt 00:04:33]} 34. Rxd5 {[%clk 00:31:27]} {[%emt
00:01:29]} Rxc1 {[%clk 00:31:47]} {[%emt 00:00:08]} 35. Rxd4 {[%clk 00:31:35]}
{[%emt 00:00:22]} Rc2+ {[%clk 00:32:13]} {[%emt 00:00:04]} 36. Kf3 {[%clk
00:31:11]} {[%emt 00:00:54]} Rxb2 {[%clk 00:32:39]} {[%emt 00:00:05]} 37. Rd7+
{[%clk 00:30:21]} {[%emt 00:01:20]} Kh6 {[%clk 00:32:55]} {[%emt 00:00:13]} 38.
Ra7 {[%clk 00:30:30]} {[%emt 00:00:21]} Ra2 {[%clk 00:33:19]} {[%emt 00:00:06]}
39. Kg3 {[%clk 00:28:13]} {[%emt 00:02:46]} a5 {[%clk 00:33:32]} {[%emt
00:00:18]} 40. Kf3 {[%clk 00:28:04]} {[%emt 00:00:39]} a4 {[%clk 00:33:56]}
{[%emt 00:00:07]} 41. Kg3 {[%clk 00:28:14]} {[%emt 00:00:19]} a3 {[%clk
00:34:19]} {[%emt 00:00:07]} 42. Kf3 {[%clk 00:28:07]} {[%emt 00:00:37]} Ra1
{[%clk 00:34:44]} {[%emt 00:00:05]} 43. Kg2 {[%clk 00:28:04]} {[%emt 00:00:32]}
a2 {[%clk 00:35:07]} {[%emt 00:00:08]} 44. Kh2 {[%clk 00:25:44]} {[%emt
00:02:49]} Rf1 {[%clk 00:35:19]} {[%emt 00:00:18]} 45. Rxa2 {[%clk 00:25:34]}
{[%emt 00:00:41]} Rxf4 {[%clk 00:35:42]} {[%emt 00:00:07]} 46. Kg3 {[%clk
00:22:19]} {[%emt 00:03:44]} Rb4 {[%clk 00:34:46]} {[%emt 00:01:28]} 47. Ra7
{[%clk 00:21:14]} {[%emt 00:01:34]} g5 {[%clk 00:34:13]} {[%emt 00:01:03]} 48.
Ra6+ {[%clk 00:17:29]} {[%emt 00:04:15]} Kh5 {[%clk 00:34:34]} {[%emt
00:00:08]} 49. Kg2 {[%clk 00:16:27]} {[%emt 00:01:33]} g4 {[%clk 00:30:41]}
{[%emt 00:04:24]} 50. hxg4+ {[%clk 00:16:26]} {[%emt 00:00:30]} Rxg4+ {[%clk
00:31:04]} {[%emt 00:00:07]} 51. Kh3 {[%clk 00:14:56]} {[%emt 00:01:59]} Rf4
{[%clk 00:30:50]} {[%emt 00:00:44]} 52. Ra5+ {[%emt 00:02:02]} 1/2-1/2

[Event "Vetern-SM 50+ 2025"]
[Site "Uppsala, Sweden"]
[Date "2025.07.06"]
[Round "9.6"]
[White "Uneson, Marcus"]
[Black "Brandberg, Joakim"]
[Result "1-0"]
[TimeControl "90 min for 40 move + 30 min with an increment of 30 sec starting move 1"]
[WhiteFideId "1730509"]
[BlackFideId "1712276"]
[WhiteElo "2118"]
[BlackElo "2111"]

1. b3 {[%clk 01:26:57]} {[%emt 00:04:03]} Nf6 {[%clk 01:29:11]} {[%emt
00:01:48]} 2. Bb2 {[%clk 01:26:41]} {[%emt 00:00:47]} b6 {[%clk 01:29:06]}
{[%emt 00:00:35]} 3. Nf3 {[%clk 01:26:15]} {[%emt 00:00:56]} Bb7 {[%clk
01:28:44]} {[%emt 00:00:51]} 4. e3 {[%clk 01:23:23]} {[%emt 00:03:22]} e6
{[%clk 01:28:35]} {[%emt 00:00:38]} 5. Be2 {[%clk 01:21:28]} {[%emt 00:02:26]}
Be7 {[%clk 01:28:31]} {[%emt 00:00:34]} 6. c4 {[%clk 01:21:01]} {[%emt
00:00:57]} c5 {[%clk 01:27:16]} {[%emt 00:01:46]} 7. O-O {[%clk 01:20:35]}
{[%emt 00:00:56]} O-O {[%clk 01:27:08]} {[%emt 00:00:36]} 8. d4 {[%clk
01:19:07]} {[%emt 00:02:00]} d5 {[%clk 01:22:22]} {[%emt 00:05:16]} 9. Ne5
{[%clk 01:12:50]} {[%emt 00:06:47]} cxd4 {[%clk 01:19:40]} {[%emt 00:03:11]} 10.
exd4 {[%clk 01:12:12]} {[%emt 00:01:08]} Nbd7 {[%clk 01:14:43]} {[%emt
00:05:27]} 11. Bf3 {[%clk 01:08:30]} {[%emt 00:04:12]} Qc7 {[%clk 01:10:55]}
{[%emt 00:04:18]} 12. Nc3 {[%clk 01:05:09]} {[%emt 00:03:52]} dxc4 {[%clk
01:07:55]} {[%emt 00:03:30]} 13. Nb5 {[%clk 01:03:58]} {[%emt 00:01:42]} Qb8
{[%clk 01:05:44]} {[%emt 00:02:38]} 14. Nc6 {[%clk 01:02:51]} {[%emt 00:01:38]}
Bxc6 {[%clk 01:01:33]} {[%emt 00:04:41]} 15. Bxc6 {[%clk 01:03:12]} {[%emt
00:00:09]} a6 {[%clk 01:01:21]} {[%emt 00:00:43]} 16. Bxa8 {[%clk 01:03:28]}
{[%emt 00:00:14]} Qxa8 {[%clk 01:01:09]} {[%emt 00:00:41]} 17. Ba3 {[%clk
01:01:49]} {[%emt 00:02:09]} Bxa3 {[%clk 01:00:16]} {[%emt 00:01:24]} 18. Nxa3
{[%clk 01:02:17]} {[%emt 00:00:02]} cxb3 {[%clk 01:00:17]} {[%emt 00:00:28]} 19.
Qxb3 {[%clk 01:00:03]} {[%emt 00:02:44]} Nd5 {[%clk 00:56:22]} {[%emt
00:04:25]} 20. Qf3 {[%clk 00:58:18]} {[%emt 00:02:16]} b5 {[%clk 00:54:56]}
{[%emt 00:01:55]} 21. Rac1 {[%clk 00:55:19]} {[%emt 00:03:29]} Qa7 {[%clk
00:52:43]} {[%emt 00:02:43]} 22. Rfd1 {[%clk 00:53:37]} {[%emt 00:02:12]} b4
{[%clk 00:47:56]} {[%emt 00:05:17]} 23. Nb1 {[%clk 00:50:58]} {[%emt 00:03:09]}
Qb6 {[%clk 00:44:50]} {[%emt 00:03:37]} 24. Qb3 {[%clk 00:44:40]} {[%emt
00:06:48]} Qa7 {[%clk 00:29:28]} {[%emt 00:15:51]} 25. g3 {[%clk 00:37:27]}
{[%emt 00:07:43]} h6 {[%emt 00:01:30]} 26. Rc6 {[%clk 00:33:51]} {[%emt
00:04:06]} a5 {[%clk 00:22:57]} {[%emt 00:06:02]} 27. Qd3 {[%clk 00:30:22]}
{[%emt 00:03:59]} Ra8 {[%clk 00:21:43]} {[%emt 00:01:43]} 28. Rdc1 {[%clk
00:30:01]} {[%emt 00:00:51]} Qb7 {[%clk 00:21:27]} {[%emt 00:00:46]} 29. Qc4
{[%clk 00:27:22]} {[%emt 00:03:09]} N7b6 {[%clk 00:19:50]} {[%emt 00:02:07]} 30.
Qb5 {[%clk 00:27:26]} {[%emt 00:00:26]} Qa7 {[%clk 00:18:43]} {[%emt 00:01:37]}
31. Kg2 {[%clk 00:23:12]} {[%emt 00:04:45]} g6 {[%clk 00:16:55]} {[%emt
00:02:17]} 32. Nd2 {[%clk 00:22:08]} {[%emt 00:01:35]} Rb8 {[%clk 00:16:19]}
{[%emt 00:01:04]} 33. Ne4 {[%clk 00:16:38]} {[%emt 00:06:01]} Kg7 {[%clk
00:15:02]} {[%emt 00:01:47]} 34. Qc5 {[%clk 00:14:46]} {[%emt 00:02:23]} Rd8
{[%clk 00:12:52]} {[%emt 00:02:39]} 35. Nd6 {[%clk 00:13:36]} {[%emt 00:01:40]}
Qa8 {[%clk 00:11:07]} {[%emt 00:02:15]} 36. Kg1 {[%clk 00:13:03]} {[%emt
00:01:04]} Qb8 {[%clk 00:09:54]} {[%emt 00:01:43]} 37. Ne4 {[%clk 00:10:36]}
{[%emt 00:02:56]} a4 {[%clk 00:09:40]} {[%emt 00:00:45]} 38. Qb5 {[%clk
00:08:27]} {[%emt 00:02:39]} Qa7 {[%clk 00:08:59]} {[%emt 00:01:10]} 39. Rd6
{[%clk 00:08:02]} {[%emt 00:00:55]} Rb8 {[%clk 00:08:45]} {[%emt 00:00:45]} 40.
Nc5 {[%clk 00:03:01]} {[%emt 00:05:31]} Nc3 {[%clk 00:05:36]} {[%emt 00:03:38]}
41. Qa6 {[%clk 00:25:32]} {[%emt 00:07:59]} Qc7 {[%clk 00:25:58]} {[%emt
00:10:07]} 42. Rxe6 {[%clk 00:25:40]} {[%emt 00:00:23]} Nxa2 {[%clk 00:25:47]}
{[%emt 00:00:41]} 43. Rce1 {[%clk 00:21:53]} {[%emt 00:04:18]} b3 {[%clk
00:22:44]} {[%emt 00:03:32]} 44. Re7 {[%clk 00:21:17]} {[%emt 00:01:06]} Qc6
{[%clk 00:22:04]} {[%emt 00:01:09]} 45. Qa7 {[%clk 00:20:56]} {[%emt 00:00:52]}
Qe8 {[%clk 00:03:12]} {[%emt 00:19:22]} 46. Rxe8 {[%clk 00:19:52]} {[%emt
00:01:35]} Rxe8 {[%clk 00:03:03]} {[%emt 00:00:38]} 47. Rxe8 {[%clk 00:19:58]}
{[%emt 00:00:24]} Nc4 {[%clk 00:01:52]} {[%emt 00:01:41]} 48. Nxa4 {[%clk
00:20:12]} {[%emt 00:00:15]} 1-0

[Event "Vetern-SM 50+ 2025"]
[Site "Uppsala, Sweden"]
[Date "2025.07.06"]
[Round "9.7"]
[White "Karlsson, Patrik"]
[Black "Ivarsson, Anders"]
[Result "0-1"]
[TimeControl "90 min for 40 move + 30 min with an increment of 30 sec starting move 1"]
[WhiteFideId "1710834"]
[BlackFideId "1768158"]
[WhiteElo "1923"]
[BlackElo "1987"]

1. e4 {[%clk 01:30:59]} c5 {[%clk 01:30:54]} {[%emt 00:00:08]} 2. Nf3 {[%clk
01:31:19]} {[%emt 00:00:09]} a6 {[%clk 01:31:19]} {[%emt 00:00:05]} 3. c4
{[%clk 01:31:29]} {[%emt 00:00:20]} Nc6 {[%clk 01:31:41]} {[%emt 00:00:08]} 4.
d4 {[%clk 01:31:44]} {[%emt 00:00:15]} cxd4 {[%clk 01:32:05]} {[%emt 00:00:05]}
5. Nxd4 {[%clk 01:32:05]} {[%emt 00:00:09]} e5 {[%clk 01:32:27]} {[%emt
00:00:08]} 6. Nc2 {[%clk 01:31:15]} {[%emt 00:01:20]} Bc5 {[%clk 01:32:33]}
{[%emt 00:00:24]} 7. Be3 {[%clk 01:27:15]} {[%emt 00:04:30]} Bxe3 {[%clk
01:32:21]} {[%emt 00:00:42]} 8. Nxe3 {[%clk 01:27:30]} {[%emt 00:00:15]} Nd4
{[%clk 01:31:19]} {[%emt 00:01:32]} 9. Nc3 {[%clk 01:20:40]} {[%emt 00:07:19]}
Ne7 {[%clk 01:31:13]} {[%emt 00:00:37]} 10. Bd3 {[%clk 01:10:33]} {[%emt
00:10:36]} d6 {[%clk 01:31:00]} {[%emt 00:00:44]} 11. O-O {[%clk 01:05:44]}
{[%emt 00:05:19]} O-O {[%clk 01:31:07]} {[%emt 00:00:23]} 12. Qh5 {[%clk
01:00:27]} {[%emt 00:05:46]} Be6 {[%clk 01:14:25]} {[%emt 00:17:14]} 13. Rad1
{[%clk 00:50:33]} {[%emt 00:10:23]} f6 {[%clk 01:13:18]} {[%emt 00:01:37]} 14.
Bb1 {[%clk 00:44:23]} {[%emt 00:06:40]} Rc8 {[%clk 01:08:26]} {[%emt 00:05:22]}
15. Ncd5 {[%clk 00:43:30]} {[%emt 00:01:23]} b5 {[%clk 01:01:32]} {[%emt
00:07:25]} 16. cxb5 {[%clk 00:40:07]} {[%emt 00:03:53]} axb5 {[%clk 01:01:21]}
{[%emt 00:00:41]} 17. Nxe7+ {[%clk 00:36:10]} {[%emt 00:04:27]} Qxe7 {[%clk
01:01:48]} {[%emt 00:00:02]} 18. Nf5 {[%clk 00:35:40]} {[%emt 00:01:00]} Nxf5
{[%clk 00:59:41]} {[%emt 00:02:36]} 19. exf5 {[%clk 00:36:04]} {[%emt
00:00:07]} Bf7 {[%clk 00:57:02]} {[%emt 00:03:09]} 20. Qg4 {[%clk 00:35:28]}
{[%emt 00:01:05]} d5 {[%clk 00:48:06]} {[%emt 00:09:27]} 21. Rfe1 {[%clk
00:27:33]} {[%emt 00:08:25]} Rc4 {[%clk 00:40:43]} {[%emt 00:07:54]} 22. Qh3
{[%clk 00:26:55]} {[%emt 00:01:06]} b4 {[%clk 00:40:21]} {[%emt 00:00:53]} 23.
Bd3 {[%clk 00:21:33]} {[%emt 00:05:51]} Rc5 {[%clk 00:39:58]} {[%emt 00:00:54]}
24. f4 {[%clk 00:17:01]} {[%emt 00:05:01]} e4 {[%clk 00:38:42]} {[%emt
00:01:47]} 25. Qe3 {[%clk 00:13:00]} {[%emt 00:04:31]} Rfc8 {[%clk 00:37:45]}
{[%emt 00:01:26]} 26. Bb1 {[%clk 00:12:01]} {[%emt 00:01:30]} Bh5 {[%clk
00:35:06]} {[%emt 00:03:09]} 27. Rd4 {[%clk 00:11:18]} {[%emt 00:01:12]} Qb7
{[%clk 00:33:12]} {[%emt 00:02:25]} 28. a3 {[%clk 00:08:45]} {[%emt 00:03:04]}
bxa3 {[%clk 00:29:53]} {[%emt 00:03:49]} 29. bxa3 {[%clk 00:08:39]} {[%emt
00:00:36]} Rc3 {[%clk 00:29:42]} {[%emt 00:00:40]} 30. Qd2 {[%clk 00:08:52]}
{[%emt 00:00:16]} Qa7 {[%clk 00:29:13]} {[%emt 00:00:59]} 31. Kh1 {[%emt
00:00:47]} e3 {[%clk 00:26:23]} {[%emt 00:03:18]} 32. Qxc3 {[%clk 00:03:26]}
{[%emt 00:05:42]} Rxc3 {[%clk 00:26:39]} {[%emt 00:00:14]} 33. Rxd5 {[%clk
00:03:49]} {[%emt 00:00:07]} Qc7 {[%clk 00:26:29]} {[%emt 00:00:40]} 34. Ba2
{[%clk 00:03:39]} {[%emt 00:00:40]} Kf8 {[%clk 00:26:37]} {[%emt 00:00:22]} 0-1

[Event "Vetern-SM 50+ 2025"]
[Site "Uppsala, Sweden"]
[Date "2025.07.06"]
[Round "9.8"]
[White "Svensson, Hakan"]
[Black "Hedin, Niclas"]
[Result "0-1"]
[TimeControl "90 min for 40 move + 30 min with an increment of 30 sec starting move 1"]
[WhiteFideId "1714201"]
[BlackFideId "1720708"]
[WhiteElo "2004"]
[BlackElo "1953"]

1. e4 {[%clk 01:30:57]} {[%emt 00:00:02]} e6 {[%clk 01:30:51]} {[%emt
00:00:09]} 2. d4 {[%clk 01:31:04]} {[%emt 00:00:23]} d5 {[%clk 01:31:15]}
{[%emt 00:00:07]} 3. e5 {[%clk 01:31:26]} {[%emt 00:00:08]} c5 {[%clk
01:31:35]} {[%emt 00:00:09]} 4. c3 {[%clk 01:31:42]} {[%emt 00:00:15]} Nc6
{[%clk 01:31:55]} {[%emt 00:00:10]} 5. Nf3 {[%clk 01:32:08]} {[%emt 00:00:03]}
Nge7 {[%clk 01:32:03]} {[%emt 00:00:22]} 6. Bd3 {[%clk 01:32:21]} {[%emt
00:00:17]} cxd4 {[%clk 01:31:39]} {[%emt 00:00:55]} 7. cxd4 {[%clk 01:32:45]}
{[%emt 00:00:05]} Nf5 {[%clk 01:31:54]} {[%emt 00:00:15]} 8. Bxf5 {[%clk
01:32:38]} {[%emt 00:00:37]} exf5 {[%clk 01:32:15]} {[%emt 00:00:09]} 9. Nc3
{[%clk 01:33:04]} {[%emt 00:00:04]} Be6 {[%clk 01:32:19]} {[%emt 00:00:26]} 10.
O-O {[%clk 01:33:16]} {[%emt 00:00:17]} Be7 {[%clk 01:32:31]} {[%emt 00:00:19]}
11. Ne1 {[%clk 01:27:16]} {[%emt 00:06:29]} Qb6 {[%clk 01:22:13]} {[%emt
00:10:48]} 12. Nc2 {[%clk 01:25:12]} {[%emt 00:02:34]} O-O {[%clk 01:17:36]}
{[%emt 00:05:08]} 13. Rb1 {[%clk 01:20:07]} {[%emt 00:05:36]} Rac8 {[%clk
01:01:43]} {[%emt 00:16:23]} 14. Re1 {[%clk 01:15:45]} {[%emt 00:04:51]} Nxe5
{[%clk 00:54:14]} {[%emt 00:08:00]} 15. dxe5 {[%clk 01:01:56]} {[%emt
00:14:18]} Rxc3 {[%clk 00:52:38]} {[%emt 00:02:05]} 16. Be3 {[%clk 01:02:06]}
{[%emt 00:00:21]} Rxe3 {[%clk 00:52:12]} {[%emt 00:00:57]} 17. Rxe3 {[%clk
01:00:00]} {[%emt 00:02:33]} d4 {[%clk 00:49:49]} {[%emt 00:02:55]} 18. Nxd4
{[%clk 00:51:38]} {[%emt 00:08:52]} Rd8 {[%clk 00:45:12]} {[%emt 00:05:06]} 19.
Rd3 {[%clk 00:27:13]} {[%emt 00:24:57]} Bc4 {[%clk 00:44:29]} {[%emt 00:01:12]}
20. Rd2 {[%clk 00:27:37]} {[%emt 00:00:07]} Bb4 {[%clk 00:20:43]} {[%emt
00:24:16]} 21. Nf3 {[%clk 00:26:08]} {[%emt 00:01:59]} Bxd2 {[%clk 00:20:42]}
{[%emt 00:00:30]} 22. Nxd2 {[%clk 00:26:32]} {[%emt 00:00:06]} Qd4 {[%clk
00:18:19]} {[%emt 00:02:53]} 23. Qc1 {[%clk 00:26:03]} {[%emt 00:00:59]} Bxa2
{[%clk 00:12:14]} {[%emt 00:06:36]} 24. Nf3 {[%clk 00:25:24]} {[%emt 00:01:08]}
Qd3 {[%clk 00:10:48]} {[%emt 00:01:56]} 25. Ra1 {[%clk 00:25:06]} {[%emt
00:00:47]} a6 {[%clk 00:09:23]} {[%emt 00:01:56]} 26. h3 {[%clk 00:24:12]}
{[%emt 00:01:25]} Bd5 {[%clk 00:09:06]} {[%emt 00:00:46]} 27. Ra3 {[%clk
00:21:03]} {[%emt 00:03:39]} Qb5 {[%clk 00:08:17]} {[%emt 00:01:19]} 28. Qg5
{[%clk 00:20:58]} {[%emt 00:00:35]} Re8 {[%clk 00:06:24]} {[%emt 00:02:24]} 29.
Nd4 {[%clk 00:19:10]} {[%emt 00:02:17]} Qxb2 {[%clk 00:06:27]} {[%emt
00:00:27]} 30. Nxf5 {[%clk 00:19:25]} {[%emt 00:00:15]} Qxe5 {[%clk 00:04:46]}
{[%emt 00:02:11]} 31. Re3 {[%clk 00:17:12]} {[%emt 00:02:42]} Qa1+ {[%clk
00:04:44]} {[%emt 00:00:32]} 32. Kh2 {[%clk 00:17:37]} {[%emt 00:00:06]} Be6
{[%clk 00:04:13]} {[%emt 00:01:01]} 33. Nd6 {[%clk 00:13:28]} {[%emt 00:04:40]}
Rf8 {[%clk 00:03:45]} {[%emt 00:00:58]} 34. Rg3 {[%clk 00:11:13]} {[%emt
00:02:43]} b5 {[%clk 00:01:50]} {[%emt 00:02:26]} 35. Ne4 {[%clk 00:11:10]}
{[%emt 00:00:33]} Kh8 {[%clk 00:01:52]} {[%emt 00:00:27]} 36. Qe7 {[%clk
00:10:33]} {[%emt 00:01:08]} Rg8 {[%clk 00:01:42]} {[%emt 00:00:39]} 37. Nd6
{[%clk 00:09:17]} {[%emt 00:01:47]} Qf6 {[%clk 00:01:30]} {[%emt 00:00:41]} 38.
Qb7 {[%clk 00:09:25]} {[%emt 00:00:23]} Bc4 {[%clk 00:00:55]} {[%emt 00:01:06]}
39. Ne4 {[%clk 00:02:07]} {[%emt 00:07:47]} Qe5 {[%clk 00:00:53]} {[%emt
00:00:32]} 40. Ng5 {[%clk 00:02:01]} {[%emt 00:00:36]} Qf6 {[%clk 00:00:41]}
{[%emt 00:00:43]} 41. Ne4 {[%clk 00:21:13]} {[%emt 00:11:17]} Qf4 {[%clk
00:25:20]} {[%emt 00:05:51]} 42. Qe7 {[%clk 00:15:04]} {[%emt 00:06:38]} h6
{[%clk 00:23:09]} {[%emt 00:02:41]} 43. h4 {[%clk 00:12:49]} {[%emt 00:02:46]}
Be6 {[%clk 00:16:52]} {[%emt 00:06:48]} 44. Nc5 {[%clk 00:11:59]} {[%emt
00:01:19]} Qxf2 {[%clk 00:12:13]} {[%emt 00:05:08]} 45. Nxa6 {[%clk 00:11:47]}
{[%emt 00:00:43]} Qf6 {[%clk 00:10:15]} {[%emt 00:02:28]} 46. Qxf6 {[%clk
00:10:46]} {[%emt 00:01:31]} gxf6 {[%clk 00:10:39]} {[%emt 00:00:06]} 47. Re3
{[%clk 00:10:34]} {[%emt 00:00:42]} Rg4 {[%clk 00:10:19]} {[%emt 00:00:50]} 48.
g3 {[%clk 00:10:43]} {[%emt 00:00:21]} Rc4 {[%clk 00:10:18]} {[%emt 00:00:31]}
49. Kg2 {[%clk 00:10:19]} {[%emt 00:00:53]} b4 {[%clk 00:10:05]} {[%emt
00:00:44]} 50. Re1 {[%clk 00:07:43]} {[%emt 00:03:07]} Bd5+ {[%clk 00:04:08]}
{[%emt 00:06:27]} 51. Kf2 {[%clk 00:07:45]} {[%emt 00:00:27]} Bb7 {[%clk
00:04:28]} {[%emt 00:00:10]} 52. Nb8 {[%clk 00:07:31]} {[%emt 00:00:45]} b3
{[%clk 00:01:09]} {[%emt 00:03:49]} 53. Rb1 {[%clk 00:06:49]} {[%emt 00:01:11]}
Rc3 {[%clk 00:00:57]} {[%emt 00:00:42]} 54. Re1 {[%clk 00:00:34]} {[%emt
00:06:45]} b2 {[%clk 00:00:42]} {[%emt 00:00:45]} 55. Nd7 {[%clk 00:00:56]}
{[%emt 00:00:08]} Rc1 {[%clk 00:00:42]} {[%emt 00:00:30]} 56. Re8+ {[%clk
00:01:22]} {[%emt 00:00:04]} Kg7 {[%clk 00:00:53]} {[%emt 00:00:18]} 0-1